lending/lending_fUSD_20250210
["ID","MTS","AMOUNT","RATE_DAILY","PERIOD"]
[352671166,1739224264599,-500.0,0.00011643,2]
[352671167,1739224264608,-500.0,0.00011643,2]
[352671168,1739224264618,-500.0,0.00011643,2]
[352671169,1739224264627,-500.0,0.00011643,2]
[352671170,1739224264637,-500.0,0.00011643,2]
[352671171,1739224264647,-500.0,0.00011643,2]
[352671172,1739224264658,-500.0,0.00011643,2]
[352671173,1739224264668,-500.0,0.00011643,2]
[352671174,1739224264677,-500.0,0.00011643,2]
[352671175,1739224264687,-500.0,0.00011643,2]
[352671176,1739224264697,-500.0,0.00011643,2]
[352671177,1739224264706,-500.0,0.00011643,2]
[352671178,1739224264715,-500.0,0.00011643,2]
[352671179,1739224264724,-500.0,0.00011643,2]
[352671180,1739224264733,-288.23521067,0.00011643,2]
[352671181,1739224264793,-211.76478933,0.00011643,2]
[352671182,1739224264803,-500.0,0.00011643,2]
[352671183,1739224264815,-500.0,0.00011643,2]
[352671184,1739224264824,-466.2557552,0.00011643,2]
[352671185,1739224264873,-33.7442448,0.00011643,2]
[352671186,1739224264883,-500.0,0.00011643,2]
[352671187,1739224264892,-500.0,0.00011643,2]
[352671188,1739224264902,-403.00392061,0.00011643,2]
[352671189,1739224264915,-96.99607939,0.00011643,2]
[352671190,1739224264924,-157.3685744,0.00011643,2]
[352671191,1739224264936,-342.6314256,0.00011643,2]
[352671192,1739224264945,-500.0,0.00011643,2]
[352671193,1739224264955,-500.0,0.00011643,2]
[352671194,1739224264964,-500.0,0.00011643,2]
[352671195,1739224264973,-500.0,0.00011643,2]
[352671196,1739224264983,-162.80694361,0.00011643,2]
[352671197,1739224264994,-337.19305639,0.00011643,2]
[352671198,1739224265003,-131.69582321,0.00011643,2]
[352671199,1739224265015,-368.30417679,0.00011643,2]
[352671200,1739224265025,-500.0,0.00011643,2]
[352671201,1739224265034,-500.0,0.00011643,2]
[352671202,1739224265044,-500.0,0.00011643,2]
[352671203,1739224265054,-500.0,0.00011643,2]
[352671204,1739224265064,-500.0,0.00011643,2]
[352671205,1739224265073,-500.0,0.00011643,2]
[352671206,1739224265083,-500.0,0.00011643,2]
[352671207,1739224265093,-500.0,0.00011643,2]
[352671208,1739224265102,-500.0,0.00011643,2]
[352671209,1739224265111,-500.0,0.00011643,2]
[352671210,1739224265121,-500.0,0.00011643,2]
[352671211,1739224265131,-500.0,0.00011643,2]
[352671212,1739224265141,-619.25,0.00011643,2]
[352671213,1739224265151,-500.0,0.00011643,2]
[352671214,1739224265162,-500.0,0.00011643,2]
[352671215,1739224265172,-500.0,0.00011643,2]
[352671216,1739224265181,-500.0,0.00011643,2]
[352671217,1739224265191,-500.0,0.00011643,2]
[352671218,1739224265200,-500.0,0.00011643,2]
[352671219,1739224265210,-876.0,0.00011643,2]
[352671220,1739224265220,-1379.65,0.00011643,2]
[352671221,1739224265229,-738.42,0.00011643,2]
[352671222,1739224265239,-500.0,0.00011643,2]
[352671223,1739224265248,-820.5,0.00011643,2]
[352671224,1739224265258,-500.0,0.00011643,2]
[352671225,1739224265267,-845.33,0.00011643,2]
[352671226,1739224265276,-648.18,0.00011643,2]
[352671227,1739224265286,-570.75,0.00011643,2]
[352671228,1739224265295,-648.09,0.00011643,2]
[352671229,1739224265305,-974.59,0.00011643,2]
[352671230,1739224265314,-1066.42,0.00011643,2]
[352671231,1739224265323,-574.64,0.00011643,2]
[352671232,1739224265332,-572.31,0.00011643,2]
[352671233,1739224265343,-730.69,0.00011643,2]
[352671234,1739224265353,-750.48,0.00011643,2]
[352671235,1739224265362,-902.86,0.00011643,2]
[352671236,1739224265372,-529.5,0.00011643,2]
[352671237,1739224265381,-500.0,0.00011643,2]
[352671238,1739224265390,-500.0,0.00011643,2]
[352671239,1739224265399,-672.07,0.00011643,2]
[352671240,1739224265409,-500.0,0.00011643,2]
[352671241,1739224265418,-534.26,0.00011643,2]
[352671242,1739224265427,-563.53,0.00011643,2]
[352671243,1739224265436,-950.07,0.00011643,2]
[352671244,1739224265446,-500.0,0.00011643,2]
[352671245,1739224265455,-500.0,0.00011643,2]
[352671246,1739224265464,-500.0,0.00011643,2]
[352671247,1739224265474,-836.47,0.00011643,2]
[352671248,1739224265483,-500.0,0.00011643,2]
[352671249,1739224265492,-677.01,0.00011643,2]
[352671250,1739224265502,-500.0,0.00011643,2]
[352671251,1739224265511,-646.8,0.00011643,2]
[352671252,1739224265520,-500.0,0.00011643,2]
[352671253,1739224265530,-739.06,0.00011643,2]
[352671254,1739224265539,-500.0,0.00011643,2]
[352671255,1739224265548,-500.0,0.00011643,2]
[352671256,1739224265557,-740.36,0.00011643,2]
[352671257,1739224265567,-569.35,0.00011643,2]
[352671258,1739224265576,-773.17,0.00011643,2]
[352671259,1739224265585,-950.16,0.00011643,2]
[352671260,1739224265595,-885.56,0.00011643,2]
[352671261,1739224265604,-631.63,0.00011643,2]
[352671262,1739224265613,-500.0,0.00011643,2]
[352671263,1739224265622,-693.07,0.00011643,2]
[352671264,1739224265631,-500.0,0.00011643,2]
[352671265,1739224265641,-772.7,0.00011643,2]
[352671266,1739224265651,-500.0,0.00011643,2]
[352671267,1739224265663,-500.0,0.00011643,2]
[352671268,1739224265673,-500.0,0.00011643,2]
[352671269,1739224265682,-948.02,0.00011643,2]
[352671270,1739224265692,-500.0,0.00011643,2]
[352671271,1739224265702,-500.0,0.00011643,2]
[352671272,1739224265711,-860.622681,0.00011643,2]
[352671273,1739224265720,-871.49,0.00011643,2]
[352671274,1739224265729,-959.6,0.00011643,2]
[352671275,1739224265738,-1191.5,0.00011643,2]
[352671276,1739224265747,-595.94,0.00011643,2]
[352671277,1739224265756,-1101.27,0.00011643,2]
[352671278,1739224265766,-500.0,0.00011643,2]
[352671279,1739224265775,-1025.12,0.00011643,2]
[352671280,1739224265784,-752.46,0.00011643,2]
[352671281,1739224265794,-633.32,0.00011643,2]
[352671282,1739224265807,-611.12,0.00011643,2]
[352671283,1739224265816,-794.5,0.00011643,2]
[352671284,1739224265825,-908.57,0.00011643,2]
[352671285,1739224265835,-835.496154,0.00011643,2]
[352671286,1739224265845,-503.87,0.00011643,2]
[352671287,1739224265854,-500.0,0.00011643,2]
[352671288,1739224265864,-500.0,0.00011643,2]
[352671289,1739224265873,-628.84,0.00011643,2]
[352671290,1739224265883,-653.62,0.00011643,2]
[352671291,1739224265893,-531.03,0.00011643,2]
[352671292,1739224265903,-1090.9,0.00011643,2]
[352671293,1739224265912,-500.0,0.00011643,2]
[352671294,1739224265922,-755.01,0.00011643,2]
[352671295,1739224265932,-500.0,0.00011643,2]
[352671296,1739224265941,-573.97,0.00011643,2]
[352671297,1739224265950,-734.5,0.00011643,2]
[352671298,1739224265959,-896.89,0.00011643,2]
[352671299,1739224265968,-500.0,0.00011643,2]
[352671300,1739224265977,-1002.9,0.00011643,2]
[352671301,1739224265986,-500.0,0.00011643,2]
[352671302,1739224265995,-1010.89,0.00011643,2]
[352671303,1739224266004,-598.18,0.00011643,2]
[352671304,1739224266014,-500.0,0.00011643,2]
[352671305,1739224266023,-778.36,0.00011643,2]
[352671306,1739224266033,-759.22,0.00011643,2]
[352671307,1739224266042,-796.8,0.00011643,2]
[352671308,1739224266051,-685.82,0.00011643,2]
[352671309,1739224266060,-965.77,0.00011643,2]
[352671310,1739224266069,-500.0,0.00011643,2]
[352671311,1739224266079,-500.0,0.00011643,2]
[352671312,1739224266088,-1046.16,0.00011643,2]
[352671313,1739224266097,-732.26,0.00011643,2]
[352671314,1739224266107,-500.0,0.00011643,2]
[352671315,1739224266116,-500.0,0.00011643,2]
[352671316,1739224266125,-956.37,0.00011643,2]
[352671317,1739224266134,-519.53,0.00011643,2]
[352671318,1739224266142,-559.01,0.00011643,2]
[352671319,1739224266151,-900.05,0.00011643,2]
[352671320,1739224266161,-500.0,0.00011643,2]
[352671321,1739224266170,-500.0,0.00011643,2]
[352671322,1739224266179,-500.0,0.00011643,2]
[352671323,1739224266188,-606.47,0.00011643,2]
[352671324,1739224266197,-500.0,0.00011643,2]
[352671325,1739224266206,-879.08,0.00011643,2]
[352671326,1739224266215,-1011.73,0.00011643,2]
[352671327,1739224266224,-773.7,0.00011643,2]
[352671328,1739224266234,-668.08,0.00011643,2]
[352671329,1739224266243,-500.0,0.00011643,2]
[352671330,1739224266252,-726.44,0.00011643,2]
[352671331,1739224266261,-1248.64,0.00011643,2]
[352671332,1739224266271,-500.0,0.00011643,2]
[352671333,1739224266280,-802.58,0.00011643,2]
[352671334,1739224266289,-517.32,0.00011643,2]
[352671335,1739224266298,-918.39,0.00011643,2]
[352671336,1739224266307,-500.0,0.00011643,2]
[352671337,1739224266317,-840.47,0.00011643,2]
[352671338,1739224266327,-500.0,0.00011643,2]
[352671339,1739224266336,-500.0,0.00011643,2]
[352671340,1739224266346,-500.0,0.00011643,2]
[352671341,1739224266355,-507.65546101,0.00011643,2]
[352671342,1739224266365,-500.0,0.00011643,2]
[352671343,1739224266374,-590.54,0.00011643,2]
[352671344,1739224266384,-616.87,0.00011643,2]
[352671345,1739224266393,-514.99,0.00011643,2]
[352671346,1739224266402,-737.43,0.00011643,2]
[352671347,1739224266413,-782.96,0.00011643,2]
[352671348,1739224266422,-508.02,0.00011643,2]
[352671349,1739224266431,-630.68,0.00011643,2]
[352671350,1739224266441,-500.0,0.00011643,2]
[352671351,1739224266450,-924.82,0.00011643,2]
[352671352,1739224266459,-1121.97,0.00011643,2]
[352671353,1739224266469,-500.0,0.00011643,2]
[352671354,1739224266478,-500.0,0.00011643,2]
[352671355,1739224266487,-500.0,0.00011643,2]
[352671356,1739224266497,-1054.09,0.00011643,2]
[352671357,1739224266507,-658.41,0.00011643,2]
[352671358,1739224266517,-500.0,0.00011643,2]
[352671359,1739224266526,-755.05,0.00011643,2]
[352671360,1739224266536,-519.64,0.00011643,2]
[352671361,1739224266546,-500.0,0.00011643,2]
[352671362,1739224266555,-1123.32,0.00011643,2]
[352671363,1739224266566,-634.3,0.00011643,2]
[352671364,1739224266575,-1435.58,0.00011643,2]
[352671365,1739224266585,-1710.5,0.00011643,2]
[352671366,1739224266595,-675.73,0.00011643,2]
[352671367,1739224266605,-630.28,0.00011643,2]
[352671368,1739224266614,-1039.21,0.00011643,2]
[352671369,1739224266624,-537.99333923,0.00011643,2]
[352671370,1739224266634,-588.93,0.00011643,2]
[352671371,1739224266644,-509.08,0.00011643,2]
[352671372,1739224266656,-500.0,0.00011643,3]
[352671373,1739224266718,-1021.05,0.00011643,2]
[352671374,1739224266728,-1217.8,0.00011643,2]
[352671375,1739224266738,-778.47,0.00011643,2]
[352671376,1739224266749,-879.41,0.00011643,2]
[352671377,1739224266759,-863.19,0.00011643,2]
[352671378,1739224266770,-1039.43,0.00011643,2]
[352671379,1739224266780,-500.0,0.00011643,2]
[352671380,1739224266790,-2054.7,0.00011643,2]
[352671381,1739224266800,-524.25,0.00011643,2]
[352671382,1739224266816,-1323.53,0.00011643,2]
[352671383,1739224266825,-532.18,0.00011643,2]
[352671384,1739224266835,-648.52,0.00011643,2]
[352671385,1739224266844,-500.0,0.00011643,2]
[352671386,1739224266854,-565.76,0.00011643,2]
[352671387,1739224266864,-1261.7,0.00011643,2]
[352671388,1739224266873,-1026.01,0.00011643,2]
[352671389,1739224266884,-2654.78,0.00011643,2]
[352671390,1739224266893,-604.2,0.00011643,2]
[352671391,1739224266904,-1136.75,0.00011643,2]
[352671392,1739224266916,-720.94,0.00011643,2]
[352671393,1739224266926,-1229.09,0.00011643,2]
[352671394,1739224266935,-500.0,0.00011643,2]
[352671395,1739224266944,-1098.69,0.00011643,2]
[352671396,1739224266953,-969.54,0.00011643,2]
[352671397,1739224266963,-909.39,0.00011643,2]
[352671398,1739224266972,-2884.06,0.00011643,2]
[352671399,1739224266982,-500.0,0.00011643,2]
[352671400,1739224266991,-1675.97,0.00011643,2]
[352671401,1739224267001,-500.0,0.00011643,2]
[352671402,1739224267011,-1262.72,0.00011643,2]
[352671403,1739224267020,-1629.18,0.00011643,2]
[352671404,1739224267030,-1021.1,0.00011643,2]
[352671405,1739224267040,-1520.76,0.00011643,2]
[352671406,1739224267049,-2746.94,0.00011643,2]
[352671407,1739224267058,-630.04,0.00011643,2]
[352671408,1739224267066,-1755.36,0.00011643,2]
[352671409,1739224267076,-1199.46,0.00011643,2]
[352671410,1739224267086,-1020.44,0.00011643,2]
[352671411,1739224267096,-1268.65,0.00011643,2]
[352671412,1739224267106,-563.26,0.00011643,2]
[352671413,1739224267115,-1033.28,0.00011643,2]
[352671414,1739224267124,-1954.3,0.00011643,2]
[352671415,1739224267134,-1294.99,0.00011643,2]
[352671416,1739224267143,-968.02,0.00011643,2]
[352671417,1739224267156,-1158.34,0.00011643,2]
[352671418,1739224267165,-2466.76,0.00011643,2]
[352671419,1739224267175,-1240.29,0.00011643,2]
[352671420,1739224267184,-1347.18,0.00011643,2]
[352671421,1739224267193,-739.42,0.00011643,2]
[352671422,1739224267203,-500.0,0.00011643,2]
[352671423,1739224267212,-1460.82,0.00011643,2]
[352671424,1739224267221,-646.49,0.00011643,2]
[352671425,1739224267230,-2218.17,0.00011643,2]
[352671426,1739224267240,-2189.11,0.00011643,2]
[352671427,1739224267249,-1188.03,0.00011643,2]
[352671428,1739224267259,-1735.43,0.00011643,2]
[352671429,1739224267269,-1793.23,0.00011643,2]
[352671430,1739224267278,-561.81,0.00011643,2]
[352671431,1739224267287,-607.13,0.00011643,2]
[352671432,1739224267296,-2379.53,0.00011643,2]
[352671433,1739224267305,-1275.33,0.00011643,2]
[352671434,1739224267314,-812.47,0.00011643,2]
[352671435,1739224267324,-1491.54,0.00011643,2]
[352671436,1739224267333,-500.0,0.00011643,2]
[352671437,1739224267343,-1725.26,0.00011643,2]
[352671438,1739224267352,-500.0,0.00011643,2]
[352671439,1739224267362,-2527.84,0.00011643,2]
[352671440,1739224267371,-636.22,0.00011643,2]
[352671441,1739224267381,-500.0,0.00011643,2]
[352671442,1739224267390,-969.78,0.00011643,2]
[352671443,1739224267399,-213.65443393,0.00011643,2]
[352671444,1739224267409,-1108.98,0.00011643,2]
[352671445,1739224267419,-626.99,0.00011643,2]
[352671446,1739224267429,-3746.66,0.00011643,2]
[352671447,1739224267438,-1316.73,0.00011643,2]
[352671448,1739224267448,-1807.49,0.00011643,2]
[352671449,1739224267458,-500.0,0.00011643,2]
[352671450,1739224267467,-1034.12,0.00011643,2]
[352671451,1739224267476,-973.15,0.00011643,2]
[352671452,1739224267486,-500.0,0.00011643,2]
[352671453,1739224267495,-532.3,0.00011643,2]
[352671454,1739224267504,-1664.22,0.00011643,2]
[352671455,1739224267514,-500.0,0.00011643,2]
[352671456,1739224267524,-4180.83,0.00011643,2]
[352671457,1739224267533,-872.95,0.00011643,2]
[352671458,1739224267542,-2299.6,0.00011643,2]
[352671459,1739224267552,-1716.5,0.00011643,2]
[352671460,1739224267561,-1151.56,0.00011643,2]
[352671461,1739224267570,-2119.4,0.00011643,2]
[352671462,1739224267579,-730.26,0.00011643,2]
[352671463,1739224267588,-717.76,0.00011643,2]
[352671464,1739224267597,-500.0,0.00011643,2]
[352671465,1739224267607,-706.7,0.00011643,2]
[352671466,1739224267616,-1359.57,0.00011643,2]
[352671467,1739224267625,-2516.17,0.00011643,2]
[352671468,1739224267635,-500.0,0.00011643,2]
[352671469,1739224267644,-500.0,0.00011643,2]
[352671470,1739224267654,-1295.47,0.00011643,2]
[352671471,1739224267663,-2222.43,0.00011643,2]
[352671472,1739224267672,-1109.74,0.00011643,2]
[352671473,1739224267681,-1249.68,0.00011643,2]
[352671474,1739224267691,-1808.5,0.00011643,2]
[352671475,1739224267700,-3729.93,0.00011643,2]
[352671476,1739224267709,-500.0,0.00011643,2]
[352671477,1739224267718,-745.65,0.00011643,2]
[352671478,1739224267727,-551.13,0.00011643,2]
[352671479,1739224267737,-753.98,0.00011643,2]
[352671480,1739224267746,-836.22,0.00011643,2]
[352671481,1739224267755,-1028.03,0.00011643,2]
[352671482,1739224267763,-1434.92,0.00011643,2]
[352671483,1739224267773,-735.27,0.00011643,2]
[352671484,1739224267783,-738.65,0.00011643,2]
[352671485,1739224267792,-1822.7,0.00011643,2]
[352671486,1739224267802,-517.86,0.00011643,2]
[352671487,1739224267815,-2142.93,0.00011643,2]
[352671488,1739224267824,-605.12,0.00011643,2]
[352671489,1739224267833,-1213.49,0.00011643,2]
[352671490,1739224267842,-1360.95,0.00011643,2]
[352671491,1739224267851,-500.0,0.00011643,2]
[352671492,1739224267860,-1311.97,0.00011643,2]
[352671493,1739224267869,-1666.23,0.00011643,2]
[352671494,1739224267878,-1092.68,0.00011643,2]
[352671495,1739224267890,-1361.38,0.00011643,2]
[352671496,1739224267900,-1019.17,0.00011643,2]
[352671497,1739224267910,-1625.8,0.00011643,2]
[352671498,1739224267919,-1036.68,0.00011643,2]
[352671499,1739224267929,-500.0,0.00011644,2]
[352671500,1739224267938,-1059.0,0.00011668,2]
[352671501,1739224267947,-436.07576067,0.00011684,2]
[352671502,1739224267957,-500.0,0.00011684,2]
[352671503,1739224267966,-1529.6,0.00011684,2]
[352671504,1739224267976,-1600.09,0.00011684,2]
[352671505,1739224267986,-1272.17,0.00011684,2]
[352671506,1739224267995,-1267.14,0.00011684,2]
[352671507,1739224268004,-4013.57,0.00011684,2]
[352671508,1739224268013,-5343.57,0.00011684,2]
[352671509,1739224268022,-1368.23,0.00011684,2]
[352671510,1739224268032,-1082.65,0.00011684,2]
[352671511,1739224268042,-1006.39,0.00011684,2]
[352671512,1739224268051,-1788.33,0.00011684,2]
[352671513,1739224268061,-500.0,0.00011684,2]
[352671514,1739224268070,-839.95,0.00011684,2]
[352671515,1739224268080,-1458.05,0.00011684,2]
[352671516,1739224268090,-1681.0,0.00011684,2]
[352671517,1739224268099,-1359.46,0.00011684,2]
[352671518,1739224268108,-1298.48,0.00011684,2]
[352671519,1739224268118,-500.0,0.00011684,2]
[352671520,1739224268128,-1548.82,0.00011684,2]
[352671521,1739224268137,-1866.56,0.00011684,2]
[352671522,1739224268146,-150.0,0.0001171,2]
[352671523,1739224268157,-161.80849203,0.00011771,2]
[352671524,1739224268166,-500.0,0.0001178,2]
[352671525,1739224268175,-500.0,0.0001178,2]
[352671526,1739224268184,-500.0,0.0001178,2]
[352671527,1739224268193,-277.40424075,0.0001178,2]
[352671528,1739224268202,-500.0,0.0001178,2]
[352671529,1739224268212,-607.89,0.0001178,2]
[352671530,1739224268221,-500.0,0.0001178,2]
[352671531,1739224268231,-685.02,0.0001178,2]
[352671532,1739224268240,-571.4,0.0001178,2]
[352671533,1739224268249,-500.0,0.0001178,2]
[352671534,1739224268258,-500.0,0.0001178,2]
[352671535,1739224268267,-545.72,0.0001178,2]
[352671536,1739224268276,-500.0,0.0001178,2]
[352671537,1739224268285,-500.0,0.0001178,2]
[352671538,1739224268294,-664.53,0.0001178,2]
[352671539,1739224268303,-655.36,0.0001178,2]
[352671540,1739224268312,-500.0,0.0001178,2]
[352671541,1739224268321,-500.0,0.0001178,2]
[352671542,1739224268330,-524.27,0.0001178,2]
[352671543,1739224268339,-552.7,0.0001178,2]
[352671544,1739224268348,-500.0,0.0001178,2]
[352671545,1739224268357,-500.0,0.0001178,2]
[352671546,1739224268367,-529.01,0.0001178,2]
[352671547,1739224268376,-500.0,0.0001178,2]
[352671548,1739224268385,-365.44720808,0.0001178,2]
[352671549,1739224268395,-906.23,0.0001178,2]
[352671550,1739224268405,-500.0,0.0001178,2]
[352671551,1739224268415,-500.0,0.0001178,2]
[352671552,1739224268425,-500.0,0.0001178,2]
[352671553,1739224268434,-933.85,0.0001178,2]
[352671554,1739224268443,-500.0,0.0001178,2]
[352671555,1739224268452,-500.0,0.0001178,2]
[352671556,1739224268461,-619.25,0.0001178,2]
[352671557,1739224268471,-1379.65,0.0001178,2]
[352671558,1739224268480,-738.42,0.0001178,2]
[352671559,1739224268489,-500.0,0.0001178,2]
[352671560,1739224268499,-820.5,0.0001178,2]
[352671561,1739224268508,-500.0,0.0001178,2]
[352671562,1739224268517,-845.33,0.0001178,2]
[352671563,1739224268526,-648.18,0.0001178,2]
[352671564,1739224268535,-570.75,0.0001178,2]
[352671565,1739224268544,-648.09,0.0001178,2]
[352671566,1739224268554,-974.59,0.0001178,2]
[352671567,1739224268563,-1066.42,0.0001178,2]
[352671568,1739224268574,-574.64,0.0001178,2]
[352671569,1739224268583,-572.31,0.0001178,2]
[352671570,1739224268592,-730.69,0.0001178,2]
[352671571,1739224268601,-750.48,0.0001178,2]
[352671572,1739224268611,-902.86,0.0001178,2]
[352671573,1739224268621,-500.0,0.0001178,2]
[352671574,1739224268630,-212.91,0.0001178,2]
[352671575,1739224268639,-672.07,0.0001178,2]
[352671576,1739224268648,-500.0,0.0001178,2]
[352671577,1739224268658,-534.26,0.0001178,2]
[352671578,1739224268667,-563.53,0.0001178,2]
[352671579,1739224268676,-950.07,0.0001178,2]
[352671580,1739224268685,-500.0,0.0001178,2]
[352671581,1739224268694,-500.0,0.0001178,2]
[352671582,1739224268704,-500.0,0.0001178,2]
[352671583,1739224268713,-836.47,0.0001178,2]
[352671584,1739224268722,-500.0,0.0001178,2]
[352671585,1739224268731,-677.01,0.0001178,2]
[352671586,1739224268741,-500.0,0.0001178,2]
[352671587,1739224268750,-646.8,0.0001178,2]
[352671588,1739224268760,-500.0,0.0001178,2]
[352671589,1739224268770,-739.06,0.0001178,2]
[352671590,1739224268779,-500.0,0.0001178,2]
[352671591,1739224268790,-500.0,0.0001178,2]
[352671592,1739224268800,-740.36,0.0001178,2]
[352671593,1739224268814,-569.35,0.0001178,2]
[352671594,1739224268823,-773.17,0.0001178,2]
[352671595,1739224268832,-950.16,0.0001178,2]
[352671596,1739224268842,-885.56,0.0001178,2]
[352671597,1739224268852,-631.63,0.0001178,2]
[352671598,1739224268861,-500.0,0.0001178,2]
[352671599,1739224268870,-693.07,0.0001178,2]
[352671600,1739224268879,-500.0,0.0001178,2]
[352671601,1739224268890,-772.7,0.0001178,2]
[352671602,1739224268899,-500.0,0.0001178,2]
[352671603,1739224268910,-500.0,0.0001178,2]
[352671604,1739224268919,-500.0,0.0001178,2]
[352671605,1739224268930,-948.02,0.0001178,2]
[352671606,1739224268940,-500.0,0.0001178,2]
[352671607,1739224268949,-500.0,0.0001178,2]
[352671608,1739224268959,-860.622681,0.0001178,2]
[352671609,1739224268969,-871.49,0.0001178,2]
[352671610,1739224268979,-959.6,0.0001178,2]
[352671611,1739224268988,-1191.5,0.0001178,2]
[352671612,1739224268998,-595.94,0.0001178,2]
[352671613,1739224269008,-1101.27,0.0001178,2]
[352671614,1739224269017,-500.0,0.0001178,2]
[352671615,1739224269026,-1025.12,0.0001178,2]
[352671616,1739224269035,-752.46,0.0001178,2]
[352671617,1739224269044,-633.32,0.0001178,2]
[352671618,1739224269053,-611.12,0.0001178,2]
[352671619,1739224269062,-794.5,0.0001178,2]
[352671620,1739224269071,-908.57,0.0001178,2]
[352671621,1739224269080,-835.496154,0.0001178,2]
[352671622,1739224269090,-503.87,0.0001178,2]
[352671623,1739224269099,-500.0,0.0001178,2]
[352671624,1739224269108,-500.0,0.0001178,2]
[352671625,1739224269117,-628.84,0.0001178,2]
[352671626,1739224269126,-653.62,0.0001178,2]
[352671627,1739224269136,-531.03,0.0001178,2]
[352671628,1739224269146,-1090.9,0.0001178,2]
[352671629,1739224269161,-500.0,0.0001178,2]
[352671630,1739224269171,-755.01,0.0001178,2]
[352671631,1739224269180,-500.0,0.0001178,2]
[352671632,1739224269189,-573.97,0.0001178,2]
[352671633,1739224269198,-734.5,0.0001178,2]
[352671634,1739224269207,-896.89,0.0001178,2]
[352671635,1739224269216,-495.14778987,0.0001178,2]
[352671636,1739224269226,-1002.9,0.0001178,2]
[352671637,1739224269234,-500.0,0.0001178,2]
[352671638,1739224269243,-1010.89,0.0001178,2]
[352671639,1739224269253,-598.18,0.0001178,2]
[352671640,1739224269262,-500.0,0.0001178,2]
[352671641,1739224269271,-778.36,0.0001178,2]
[352671642,1739224269280,-759.22,0.0001178,2]
[352671643,1739224269289,-796.8,0.0001178,2]
[352671644,1739224269299,-685.82,0.0001178,2]
[352671645,1739224269308,-965.77,0.0001178,2]
[352671646,1739224269318,-500.0,0.0001178,2]
[352671647,1739224269328,-500.0,0.0001178,2]
[352671648,1739224269338,-1046.16,0.0001178,2]
[352671649,1739224269348,-732.26,0.0001178,2]
[352671650,1739224269357,-500.0,0.0001178,2]
[352671651,1739224269367,-500.0,0.0001178,2]
[352671652,1739224269377,-956.37,0.0001178,2]
[352671653,1739224269387,-519.53,0.0001178,2]
[352671654,1739224269397,-559.01,0.0001178,2]
[352671655,1739224269409,-900.05,0.0001178,2]
[352671656,1739224269419,-500.0,0.0001178,2]
[352671657,1739224269428,-500.0,0.0001178,2]
[352671658,1739224269438,-500.0,0.0001178,2]
[352671659,1739224269448,-606.47,0.0001178,2]
[352671660,1739224269458,-500.0,0.0001178,2]
[352671661,1739224269467,-879.08,0.0001178,2]
[352671662,1739224269477,-1011.73,0.0001178,2]
[352671663,1739224269486,-773.7,0.0001178,2]
[352671664,1739224269496,-668.08,0.0001178,2]
[352671665,1739224269505,-500.0,0.0001178,2]